{"text_format":"2","workbook":"xlsx","n_sheets":7,"sheets":["ТИТУЛЬНЫЙ ЛИСТ","ВВЕДЕНИЕ","ВЫСКАЗЫВАНИЯ","ЛОГИЧЕСКИЕ ОПЕРАЦИИ","ТАБЛИЦА ИСТИННОСТИ","ЛОГИЧЕСКИЕ ЭЛЕМЕНТЫ","Лист1"],"not_rendered":{"charts":0,"images":23,"macros":0,"external_links":0,"defined_names":0,"comments":0,"pivot_tables":0},"unopened":[],"bounds":{"document_bytes":16777216,"sheet_cells":100000,"run_cost":"one","rows_first":2000,"rows_last":500,"rows_between":2000,"halvings":0,"cell_chars":16384,"cell_head_chars":4096},"cells_cut":0,"cells_raw":0,"read":"whole","date_system":"1900"}

{"sheet":"ТИТУЛЬНЫЙ ЛИСТ","index":0,"n_rows":16,"n_cols":7,"rows_kept":16,"cut":false,"hidden":false,"merged":[[16,7,16,12],[11,3,11,12],[0,1,0,13],[15,6,15,13],[4,2,4,12],[10,2,10,12],[6,3,6,12],[8,3,8,12]]}
[null,"Муниципальное бюджетное образовательное учреждение \"Кокинская основная общеобразовательная школа\""]
[]
[]
[]
[null,null,"ОСНОВЫ АЛГЕБРЫ ЛОГИКИ"]
[]
[null,null,null,"ЭЛЕКТРОННАЯ РАБОЧАЯ ТЕТРАДЬ"]
[]
[null,null,null,"ПО ИНФОРМАТИКЕ"]
[]
[null,null,"Дидактическое пособие для учащихся 8 классов"]
[]
[]
[]
[]
[{"$nulls":6},"© Ламонова Наталья Александровна,  учитель физики и информатики"]

{"sheet":"ВВЕДЕНИЕ","index":1,"n_rows":12,"n_cols":5,"rows_kept":12,"cut":false,"hidden":false,"merged":[[11,4,12,11],[9,4,9,11],[10,4,10,11],[1,4,1,10],[3,3,3,11],[5,2,5,12],[7,3,7,13],[8,4,8,11]]}
[]
[{"$nulls":4},"Введение"]
[]
[null,null,null,"Перед вами электронная тетрадь-тренажер"]
[]
[null,null,"Предназначенная для отработки практических навыков работы  с логическими выражениями, составленными с помощью логических операций"]
[]
[null,null,null,"Задания, содержащиеся в электронной тетради, помогут сформировать следующие умения:"]
[]
[{"$nulls":4},"Ø преобразование логические выражения"]
[{"$nulls":4},"Ø  построение таблиц истинности для логических выражений"]
[{"$nulls":4},"Ø анализировать электронные схемы"]

{"sheet":"ВЫСКАЗЫВАНИЯ","index":2,"n_rows":10,"n_cols":5,"rows_kept":10,"cut":false,"hidden":false,"merged":[[9,0,9,1],[0,0,0,3],[1,0,1,3],[0,4,0,13],[1,5,1,12],[2,0,2,1],[3,0,3,1],[4,0,4,1],[5,0,5,1],[6,0,6,1],[7,0,7,1],[8,0,8,1]]}
["ЗАДАНИЕ ",null,null,null,"Справочный материал"]
["Определите предложение является высказыванием или нет"]
["Предложение",null,"Ответ (ДА или НЕТ)","Результат"]
["Зимой идет снег.",null,null,{"$f":"IF((C4)=\"ДА\",\"МОЛОДЕЦ\",IF(ISBLANK(C4),\"Проверить\",\"Подумай ещё\"))","v":"Проверить"}]
["Снегири живут в Крыму.",null,null,{"$f":"IF((C5)=\"ДА\",\"МОЛОДЕЦ\",IF(ISBLANK(C5),\"Проверить\",\"Подумай ещё\"))","v":"Проверить"}]
["Кто к нам пришёл?",null,null,{"$f":"IF((C6)=\"ДА\",\"Подумай ещё\",IF(ISBLANK(C6),\"Проверить\",\"МОЛОДЕЦ\"))","v":"Проверить"}]
["У треугольника 5 сторон.",null,null,{"$f":"IF((C7)=\"ДА\",\"МОЛОДЕЦ\",IF(ISBLANK(C7),\"Проверить\",\"Подумай ещё\"))","v":"Проверить"}]
["Как пройти в библиотеку?",null,null,{"$f":"IF((C8)=\"ДА\",\"Подумай ещё\",IF(ISBLANK(C8),\"Проверить\",\"МОЛОДЕЦ\"))","v":"Проверить"}]
["Переведите число в десятичную систему.",null,null,{"$f":"IF((C9)=\"ДА\",\"Подумай ещё\",IF(ISBLANK(C9),\"Проверить\",\"МОЛОДЕЦ\"))","v":"Проверить"}]
["Запишите домашнее задание",null,null,{"$f":"IF((C10)=\"ДА\",\"Подумай ещё\",IF(ISBLANK(C10),\"Проверить\",\"МОЛОДЕЦ\"))","v":"Проверить"}]

{"sheet":"ЛОГИЧЕСКИЕ ОПЕРАЦИИ","index":3,"n_rows":24,"n_cols":12,"rows_kept":24,"cut":false,"hidden":false,"merged":[[23,7,24,10],[0,3,0,13],[10,4,11,12],[10,1,11,3],[12,1,12,3],[13,1,13,3],[1,1,1,4],[7,1,7,4],[8,1,8,4],[1,6,1,13],[8,6,8,13],[12,5,13,11],[18,14,18,15],[20,14,20,15],[21,14,21,15],[18,5,18,6]]}
[null,"Логические операции",null,"Справочный материал"]
{"$rows_empty":9}
[null,"Задание 1",null,null,"Задание 2"]
[]
[null,"Даны два простых  высказывания: А={2*2=4}, В={2*2=5}.",null,null,null,"Установите соответствие между логическими выражениями и закрашенными областями                                         (ответ впишите в белые окошки)"]
[null," Какие из высказываний истинны?"]
[null,"Высказывание","Ответ (1 или 0)","Результат"]
[null,"A",null,{"$f":"IF((C16)=1,\"МОЛОДЕЦ\",IF(ISBLANK(C16),\"Проверить\",\"Подумай ещё\"))","v":"Проверить"}]
[null,"B",null,{"$f":"IF((C17)=1,\"Подумай ещё\",IF(ISBLANK(C17),\"Проверить\",\"МОЛОДЕЦ\"))","v":"Проверить"}]
[null,"A^B",null,{"$f":"IF((C18)=1,\"Подумай ещё\",IF(ISBLANK(C18),\"Проверить\",\"МОЛОДЕЦ\"))","v":"Проверить"}]
[null,"A+B",null,{"$f":"IF((C19)=1,\"МОЛОДЕЦ\",IF(ISBLANK(C19),\"Проверить\",\"Подумай ещё\"))","v":"Проверить"},null,1,null,2,null,3,null,4]
[null,"¬ A",null,{"$f":"IF((C20)=1,\"Подумай ещё\",IF(ISBLANK(C20),\"Проверить\",\"МОЛОДЕЦ\"))","v":"Проверить"}]
[null,"A^¬B",null,{"$f":"IF((C21)=1,\"МОЛОДЕЦ\",IF(ISBLANK(C21),\"Проверить\",\"Подумай ещё\"))","v":"Проверить"},null,"НЕ А И В",null,"А ИЛИ В И С",null,"А И НЕ (В ИЛИ С)",null,"(А ИЛИ С) И (В ИЛИ С)"]
[]
[]
[{"$nulls":7},{"$f":"IF(AND(($F$22)=2,($H$22)=1,($J$22)=4,($L$22)=3),\"МОЛОДЕЦ\",IF(OR(ISBLANK(F22),ISBLANK(H22),ISBLANK(J22),ISBLANK(L22)),\"Проверить\",\"Подумай ещё\"))","v":"Проверить"}]

{"sheet":"ТАБЛИЦА ИСТИННОСТИ","index":4,"n_rows":22,"n_cols":8,"rows_kept":22,"cut":false,"hidden":false,"merged":[[16,1,21,1],[1,1,1,5],[2,1,7,1],[9,1,14,1],[0,6,0,15],[0,1,0,4]]}
[null,"ЗАДАНИЕ ",{"$nulls":4},"Справочный материал"]
[null,"Построить таблицу истинности для следующих функций"]
[null,"F = ¬A  ⋁ B","A","B"," ¬A  "," ¬A  ⋁ B"]
[null,null,0,0]
[null,null,0,1]
[null,null,1,0]
[null,null,1,1]
[{"$nulls":4},{"$f":"IF(AND((E4)=1,(E5)=1,(E6)=0,(E7)=0),\"МОЛОДЕЦ\",IF(OR(ISBLANK(E4),ISBLANK(E5),ISBLANK(E6),ISBLANK(E7)),\"Проверить\",\"Подумай ещё\"))","v":"Проверить"},{"$f":"IF(AND((F4)=1,(F5)=1,(F6)=0,(F7)=1),\"МОЛОДЕЦ\",IF(OR(ISBLANK(F4),ISBLANK(F5),ISBLANK(F6),ISBLANK(F7)),\"Проверить\",\"Подумай ещё\"))","v":"Проверить"}]
[]
[null,"F = A  ⋀  ¬B","A","B"," ¬B ","A  ⋀  ¬B"]
[null,null,0,0]
[null,null,0,1]
[null,null,1,0]
[null,null,1,1]
[{"$nulls":4},{"$f":"IF(AND((E11)=1,(E12)=0,(E13)=1,(E14)=0),\"МОЛОДЕЦ\",IF(OR(ISBLANK(E11),ISBLANK(E12),ISBLANK(E13),ISBLANK(E14)),\"Проверить\",\"Подумай ещё\"))","v":"Проверить"},{"$f":"IF(AND((F11)=0,(F12)=0,(F13)=1,(F14)=0),\"МОЛОДЕЦ\",IF(OR(ISBLANK(F11),ISBLANK(F12),ISBLANK(F13),ISBLANK(F14)),\"Проверить\",\"Подумай ещё\"))","v":"Проверить"}]
[]
[null,"F =(A⋀B)⋁(¬A ⋀ B)","A","B"," ¬A  "," ¬A   ⋀  B","A⋀B","(A⋀B)⋁(¬A ⋀ B)"]
[null,null,0,0]
[null,null,0,1]
[null,null,1,0]
[null,null,1,1]
[{"$nulls":4},{"$f":"IF(AND((E18)=1,(E19)=1,(E20)=0,(E21)=0),\"МОЛОДЕЦ\",IF(OR(ISBLANK(E18),ISBLANK(E19),ISBLANK(E20),ISBLANK(E21)),\"Проверить\",\"Подумай ещё\"))","v":"Проверить"},{"$f":"IF(AND((F18)=0,(F19)=1,(F20)=0,(F21)=0),\"МОЛОДЕЦ\",IF(OR(ISBLANK(F18),ISBLANK(F19),ISBLANK(F20),ISBLANK(F21)),\"Проверить\",\"Подумай ещё\"))","v":"Проверить"},{"$f":"IF(AND((G18)=0,(G19)=0,(G20)=0,(G21)=1),\"МОЛОДЕЦ\",IF(OR(ISBLANK(G18),ISBLANK(G19),ISBLANK(G20),ISBLANK(G21)),\"Проверить\",\"Подумай ещё\"))","v":"Проверить"},{"$f":"IF(AND((H18)=0,(H19)=1,(H20)=0,(H21)=1),\"МОЛОДЕЦ\",IF(OR(ISBLANK(H18),ISBLANK(H19),ISBLANK(H20),ISBLANK(H21)),\"Проверить\",\"Подумай ещё\"))","v":"Проверить"}]

{"sheet":"ЛОГИЧЕСКИЕ ЭЛЕМЕНТЫ","index":5,"n_rows":25,"n_cols":7,"rows_kept":25,"cut":false,"hidden":false,"merged":[[8,5,8,13],[7,7,7,13],[1,8,1,13],[0,6,0,14],[10,0,10,3],[0,0,0,3],[1,0,1,3],[7,0,7,3],[8,0,8,3]]}
["ЗАДАНИЕ 1",{"$nulls":5},"        Справочный материал"]
{"$rows_empty":8}
["1) F=¬A&B","2) F=¬A+B","3) F=¬A+¬B","4) F=¬A&¬B"]
["ЗАДАНИЕ 2"]
{"$rows_empty":9}
["1) F=¬A+¬B","2) F=¬A&(A+B)","3) F=¬A&A+B"," 4) F=¬A+B&A"]
[]
[null,"Задание","Ответ","Результат"]
[null,"Задание 1",null,{"$f":"IF((C24)=4,\"МОЛОДЕЦ\",IF(ISBLANK(C24),\"Проверить\",\"Подумай ещё\"))","v":"Проверить"}]
[null,"Задание 2",null,{"$f":"IF((C25)=2,\"МОЛОДЕЦ\",IF(ISBLANK(C25),\"Проверить\",\"Подумай ещё\"))","v":"Проверить"}]

{"sheet":"Лист1","index":6,"n_rows":0,"n_cols":0,"rows_kept":0,"cut":false,"hidden":false,"merged":[]}